Cogmind - Beta 10.2 @@@ ROGUE MODE // 2021.11.20 @ 22:26:55 Player: ILikeGoodFood Result: Destroyed by G-34 Mercenary with Small Laser Performance ------------- Evolutions (1) 500 Regions Visited (2) 400 Robots Destroyed (14) 70 Value Destroyed (234) 234 Prototype IDs (2) 40 Alien Tech Used (0) 0 Bonus (0) 0 TOTAL SCORE: 1244 Bonus ------- None Cogmind --------- Core Integrity 0/400 Matter 261/300 Energy 99/100 System Corruption 0% Temperature Cool (6) Movement Core (50) Location -9/Materials Parts ------- > --- POWER (2) -------- (None) > --- PROPULSION (2) --- (None) > --- UTILITY (3) ------ Signal Interpreter Hacking Suite > --- WEAPON (2) ------- Light Assault Rifle > --- INVENTORY (4) ---- Improved Terrain Scanner Peak State ------------ > --- POWER ------------ Light Nuclear Core > --- PROPULSION ------- Hover Unit > --- UTILITY ---------- Sensor Array Signal Interpreter Hacking Suite > --- WEAPON ----------- Assault Rifle Heavy Hammer > --- INVENTORY -------- Improved Terrain Scanner Mining Laser [Rating: 12] Favorites ----------- Power Light Nuclear Core Engine Light Ion Engine Power Core Light Nuclear Core Propulsion Wheel Wheel Wheel Hover Unit Hover Unit Utility Small Storage Unit Device Improved Terrain Scanner Storage Small Storage Unit Processor Signal Interpreter Hackware Hacking Suite Weapon Assault Rifle Ballistic Gun Assault Rifle Special Weapon Mining Laser Impact Weapon Heavy Hammer Build | -11 -10 -9 ------- Run | Scr Mat Mat Slots Evolved 2 | . . 2 Power 1 | . . 1 Propulsion . | . . . Utility 1 | . . 1 Weapon . | . . . Parts Attached 20 | 7 7 6 Power 4 | 1 2 1 Engine 1 | 1 . . Core 3 | . 2 1 Reactor . | . . . Propulsion 4 | 2 2 . Treads . | . . . Leg . | . . . Wheel 2 | 2 . . Hover 2 | . 2 . Flight . | . . . Utility 6 | 2 3 1 Device 2 | 1 . 1 Storage 1 | 1 . . Processor 2 | . 2 . Hackware 1 | . 1 . Protection . | . . . Artifact . | . . . Weapon 6 | 2 . 4 Energy Gun . | . . . Energy Cannon . | . . . Ballistic Gun 4 | 2 . 2 Ballistic Cannon . | . . . Launcher . | . . . Special Weapon 1 | . . 1 Impact Weapon 1 | . . 1 Slashing Weapon . | . . . Piercing Weapon . | . . . Special Melee Weapon . | . . . Unidentified Prototypes . | . . . Parts Lost 8 | . . 8 Power 1 | . . 1 Propulsion 2 | . . 2 Utility 1 | . . 1 Weapon 4 | . . 4 Highest Loss Streak 8 | . . 8 Average Slot Usage (%) 87 | . 96 53 Engine 4 | . 5 . Core 7 | . 8 4 Wheel 17 | . 22 . Hover 6 | . 5 9 Device 9 | . 9 7 Storage 7 | . 9 . Processor 6 | . 5 11 Hackware 4 | . 3 11 Ballistic Gun 21 | . 24 6 Naked Turns . | . . . Heaviest Build 14 | 12 14 9 Greatest Support 20 | 20 20 12 Greatest Overweight (x) 2 | . 1 2 Average Overweight (x) . | . . 1 Largest Inventory Capacity 6 | 6 6 4 Average Capacity 5 | 5 5 4 Most Carried 4 | 2 4 3 Average Carried 1 | . 1 1 Final Capacity 6 | 6 4 4 Final Carried 3 | 1 3 1 Class Distribution -------------------- 67% | Mutant 32% | Scavenger-Mutant Dominant Class ---------------- Mutant | -10/Materials Scavenger-Mutant | -9/Materials Resources | -11 -10 -9 ----------- Run | Scr Mat Mat Matter Collected 429 | 246 146 37 Remotely . | . . . Salvage Created 292 | 14 169 109 Parts 33 | 2 16 15 Haulers Intercepted . | . . . Recyclers Shooed . | . . . Parts Field Recycled . | . . . Retrieved Matter . | . . . Parts Self-Destructed . | . . . Prevented . | . . . Kills | -11 -10 -9 ------- Run | Scr Mat Mat Combat Hostiles Destroyed 11 | . 3 8 Guns 9 | . 3 6 Cannons 1 | . . 1 Classes Destroyed 5 | 1 3 1 Tunneler 1 | 1 . . Operator 1 | . 1 . Watcher 1 | . 1 . Swarmer 8 | . . 8 Grunt 3 | . 3 . Best Kill Streak 6 | 1 2 6 Combat Bots Only 6 | . 2 6 Max Kills in Single Turn 1 | 1 1 1 Gunslinging . | . . . Exploded . | . . . Melee . | . . . Uniques/NPCs Destroyed . | . . . Combat | -11 -10 -9 -------- Run | Scr Mat Mat Damage Taken 873 | . 102 771 Core 430 | . 29 401 Absorbed by Shields . | . . . Core Remaining (%) 94 | 100 88 . Volleys Fired 30 | 2 13 15 Largest 2 | 2 2 1 Hottest 100 | 40 40 100 Shots Fired 43 | 4 24 15 Gun 42 | 4 24 14 Cannon . | . . . Launcher . | . . . Special 1 | . . 1 Kinetic 42 | 4 24 14 Thermal 1 | . . 1 Explosive . | . . . Electromagnetic . | . . . Robot Hit Streak 13 | 3 13 7 Robot Miss Streak 3 | 1 1 3 Penetration Max . | . . . Secondary Targets . | . . . Shots Hit Robots 31 | 3 16 12 Core Hits 18 | 1 10 7 Critical Hits 2 | . 1 1 Critical Kills . | . . . Critical Parts Destroyed 2 | . 1 1 Melee Attacks 2 | . . 2 Impact 2 | . . 2 Slashing . | . . . Piercing . | . . . Sneak Attacks . | . . . Combat Hostiles . | . . . Follow-up Attacks . | . . . Damage Inflicted 385 | 22 182 181 Guns 304 | 22 182 100 Cannons . | . . . Explosions . | . . . Melee 57 | . . 57 Ramming . | . . . Kinetic 304 | 22 182 100 Thermal 24 | . . 24 Explosive . | . . . Electromagnetic . | . . . Impact 57 | . . 57 Slashing . | . . . Piercing . | . . . Highest Corruption . | . . . Average Corruption . | . . . Corruption Purged . | . . . Overload Shots . | . . . Overflow Damage 16 | . . 16 Projectiles . | . . . Explosions . | . . . Melee 16 | . . 16 Knockbacks . | . . . Impact . | . . . Kinetic . | . . . Secondary . | . . . Self-Inflicted Damage . | . . . Shots . | . . . Rammed . | . . . Targets Rammed . | . . . Kicked . | . . . Crushed . | . . . Highest Temperature 2 | . 2 . Average Temperature 2 | . 2 . Received Heat Transfer 60 | . 54 6 Siege Activations . | . . . Robots Corrupted . | . . . Combat Hostiles . | . . . Parts Fried 2 | . . 2 Impact Corruptions 1 | . . 1 Robots Melted . | . . . Combat Hostiles . | . . . Parts Melted . | . . . Heat Transferred 50 | . . 50 Parts Sabotaged . | . . . Parts Stolen . | . . . Parts Stripped . | . . . Power Chain Reactions . | . . . Missiles Intercepted . | . . . Alert | -11 -10 -9 ------- Run | Scr Mat Mat Peak Influence 160 | 5 160 115 Initial 5 | . 3 5 Average 58 | 2 72 31 Maximum Alert Level . | . . . Low Security (%) 100 | 100 100 100 Level 1 . | . . . Level 2 . | . . . Level 3 . | . . . Level 4 . | . . . Level 5 . | . . . High Security . | . . . Max Security . | . . . Squads Dispatched 2 | . 1 1 Investigation . | . . . Extermination . | . . . Reinforcement 2 | . 1 1 Assault . | . . . Garrison . | . . . Intercept . | . . . Construction Impeded . | . . . Haulers Reinforced . | . . . Stealth | -11 -10 -9 --------- Run | Scr Mat Mat Distress Signals 2 | . . 2 Communications Jammed . | . . . Distress Signals . | . . . Times Spotted 23 | . 10 13 Peak Tracking Total 8 | . 3 8 Tactical Retreats . | . . . Traps | -11 -10 -9 ------- Run | Scr Mat Mat Traps Triggered 1 | . 1 . Indirectly . | . . . Trap Hack Attempts . | . . . Triggered . | . . . Disarmed . | . . . Reprogrammed . | . . . Reused . | . . . Traps Extracted . | . . . Installed . | . . . Triggered . | . . . Machines | -11 -10 -9 ---------- Run | Scr Mat Mat Machines Disabled . | . . . Max in Single Turn . | . . . Machines Sabotaged . | . . . Garrisons Compromised . | . . . Overloaded Fab Kills . | . . . Fab Network Shutdowns . | . . . Hacking | -11 -10 -9 --------- Run | Scr Mat Mat Machines Accessed 5 | . 4 1 Terminals 3 | . 3 . Fabricators . | . . . Repair Stations 2 | . 1 1 Recycling Units . | . . . Scanalyzers . | . . . Garrison Access . | . . . Total Hacks 18 | . 16 2 Successful 8 | . 6 2 Failed 10 | . 10 . Catastrophic . | . . . Database Lockouts . | . . . Manual . | . . . Terminals 15 | . 15 . Fabricators . | . . . Repair Stations 3 | . 1 2 Recycling Units . | . . . Scanalyzers . | . . . Garrison Access . | . . . Terminal Hacks 6 | . 6 . Record 3 | . 3 . Prototype ID Bank 1 | . 1 . Locate Traps 1 | . 1 . Zone Layout 1 | . 1 . Fabricator Hacks . | . . . Repair Station Hacks 2 | . . 2 Scan Component 1 | . . 1 Repair 1 | . . 1 Recycling Unit Hacks . | . . . Scanalyzer . | . . . Garrison Access Hacks . | . . . Unauthorized Hacks . | . . . Terminals . | . . . Fabricators . | . . . Repair Stations . | . . . Recycling Units . | . . . Scanalyzers . | . . . Garrison Access . | . . . Data Cores Recovered 1 | . 1 . Used 1 | . 1 . Hacking Detections 3 | . 3 . Full Trace Events . | . . . Feedback Events . | . . . Feedback Blocked . | . . . Robot Schematics Acquired . | . . . Robots Built . | . . . Matter . | . . . Time . | . . . Total Robot Build Rating . | . . . Part Schematics Acquired . | . . . Parts Built . | . . . Matter . | . . . Time . | . . . Total Part Build Rating . | . . . Parts Repaired 1 | . . 1 Time 38 | . . 38 Parts Recycled . | . . . Recycled Matter . | . . . Retrieved Matter . | . . . Retrieved Components . | . . . Parts Scanalyzed . | . . . Part Schematics Acquired . | . . . Parts Damaged . | . . . Bothacking | -11 -10 -9 ------------ Run | Scr Mat Mat Used RIF Installer . | . . . Robots Hacked . | . . . Non-combat . | . . . Combat . | . . . Robot Hacks Applied . | . . . Relay Couplers Released . | . . . Robots Rewired . | . . . Allies Hacked . | . . . Hacks Repelled . | . . . Allies | -11 -10 -9 -------- Run | Scr Mat Mat Total Allies . | . . . Largest Group . | . . . Highest-Rated Group . | . . . Highest-Rated Ally . | . . . Total Orders . | . . . Ally Attacks . | . . . Total Damage . | . . . Kills . | . . . Allies Corrupted . | . . . Allies Melted . | . . . Intel | -11 -10 -9 ------- Run | Scr Mat Mat Robot Analysis Total . | . . . Derelict Logs Recovered . | . . . Drone Launches . | . . . Drone Recoveries . | . . . Exploration | -11 -10 -9 ------------- Run | Scr Mat Mat Turns Passed 625 | 56 450 119 Spaces Moved 492 | 45 413 34 Core 23 | 2 . 21 Treads . | . . . Legs . | . . . Wheels 300 | 43 257 . Hover 169 | . 156 13 Flight . | . . . Fastest Speed 50 | 50 56 50 Average Speed 74 | 78 71 110 Slowest Speed 150 | 80 125 150 Overloaded Moves . | . . . Propulsion Burnouts . | . . . Robots Hopped . | . . . Cave-ins Triggered . | . . . Exploration Rate (%) 16 | 4 38 7 Regions Visited 2 Branch Regions . Pre-discovered Areas . | . . . Known Exits Taken 1 | . 1 . Unknown Exits Taken 1 | 1 . . Scrap Searched . | . . . Spaces Dug . | . . . Terrain Destroyed . | . . . Melee . | . . . Projectile . | . . . AOE . | . . . Terrain Rammed . | . . . Walls Destroyed . | . . . Machines Disabled . | . . . Actions | -11 -10 -9 --------- Run | Scr Mat Mat Total 702 | 61 544 97 Wait 136 | . 100 36 Move 490 | 44 412 34 Hop . | . . . Pick Up 20 | 8 8 4 Fast Attach . | . . . Attach 15 | 7 2 6 Detach . | . . . Swap 5 | . 5 . Drop 4 | . 4 . Fire 30 | 2 13 15 Melee 2 | . . 2 Ram . | . . . Kick . | . . . Crush . | . . . Escape Stasis . | . . . Rewire . | . . . Trap . | . . . Miscellaneous . | . . . Route ------- -11/Scrapyard -10/Materials (discovered 2 exits: *Mat / [*Min]) -9/Materials History --------- Turn | Location | Event 19 | -11/Scrapyard | Discovered new exit (range 15) 57 | -11/Scrapyard | Entered Materials 113 | -10/Materials | Discovered new exit (range 16) 303 | -10/Materials | Build established: Mutant 324 | -10/Materials | Discovered new exit (range 16) 507 | -10/Materials | Identified exit to Materials 507 | -10/Materials | Entered another Materials area 507 | -9/Materials | Evolved 2 slots: Power x1, Utility x1 552 | -9/Materials | Repaired Lgt. Nuclear Core 591 | -9/Materials | Core integrity fell below 50% 605 | -9/Materials | Core integrity fell below 20% 626 | -9/Materials | Destroyed by G-34 Mercenary with Small Laser Last Messages --------------- Hover Unit destroyed. Acquired 18 matter. W-16 Scout sends out distress signal. Destroyed Flight Unit. S-10 Pest system corrupted by crushing effect. Sensor Array destroyed. S-10 Pest system terminally corrupted. Lgt. Assault Rifle fried. Flight Unit fried. Acquired 19 matter. Lgt. Nuclear Core destroyed. Hvy. Hammer destroyed. S-10 Pest destroyed. Mining Laser destroyed. S-10 Pest destroyed. Acquired Lgt. Assault Rifle. S-10 Pest destroyed. Lgt. Assault Rifle destroyed. Acquired Lgt. Assault Rifle. S-10 Pest destroyed. Map ----- +----------------------------------------------------+ | ?????????????????????????????????????????????????? | | ?????????????????????????????????????????????????? | | ?????????????????????????????????????????????????? | | ?????????????????????????????????????????????????? | | ?????????????????????????????????????????????????? | | ?????????????????????????????????????????????????? | | ?????????????????????????????????????????????????? | | ?????????????????????????????????????????????????? | | ?????????????????????????????????????????????????? | | ?????????????????????????????????????????????????? | | ?????????????????????????????????????????????????? | | ?????????????????????????????????????????????????? | | ?????????????????????????????????????????????????? | | ?????????????????????????##+##???????????????????? | | ?????????????????????????+ #???????????????????? | | ?????????????????????????# a ???????????????????? | | ?????????????????????????# #???????????????????? | | ?????????????????????????# #???????????????????? | | ?????????????????????????# #???????????????????? | | ?????????????????????????# #???????????????????? | | ?????????????????????????# #???????????????????? | | ??????????""" ???????????# #???????????????????? | | ????????? g#####+##### =#???????????????????? | | ????????? ! g [%= =%#???????????????????? | | ???????? * [#???????????????????? | | ???????? @%=*#???????????????????? | | ???????????# = #???????????????????? | | ???????????# """ """ ""[%##??????????????????? | | ???????????# """ """ "" ="#??????????????????? | | ???????????# """ """ oT" T#??????????????????? | | ???????????# "" *"#??????????????????? | | ???????????# ""%%##??????????????????? | | ???????????# [#???????????????????? | | ???????????# #???????????????????? | | ???????????# ### #???????????????? | | ???????????# !! //! ????????????? | | ???????????+ !! /! ???????????? | | ???????????# ! /!! ????????????? | | ???????????# ##" "#####+###########????????????? | | ???????????# ##"R"#????????????????????????????? | | ???????????# ##"""#????????????????????????????? | | ???????????# ######????????????????????????????? | | ???????????#####?????????????????????????????????? | | ?????????????????????????????????????????????????? | | ?????????????????????????????????????????????????? | | ?????????????????????????????????????????????????? | | ?????????????????????????????????????????????????? | | ?????????????????????????????????????????????????? | | ?????????????????????????????????????????????????? | | ?????????????????????????????????????????????????? | +----------------------------------------------------+ Best States ------------- Heat Dissipation 28 Energy Generation 14 Energy Capacity 160 Matter Stores 300 Matter Capacity 300 Sight Range 18 Robot Scan Range 10 Terrain Scan Range 16 Terrain Scan Density 10 Evasion (%) 53 Offensive Hacking 10 Item Schematics ----------------- None Robot Schematics ------------------ None Fabricated ------------ Nothing Alien Tech Used ----------------- None Achievements -------------- Dynamic Key Challenges ------------ None Game ------ Seed FortressIonicFlamer Manual? 0 Play Time 00:12:17 Cumulative 17.7 hours Start 2021.11.20 @ 22:16:17 End 2021.11.20 @ 22:26:55 Sessions 1 Manual Loads 0 Difficulty Rogue Special Mode None Game No. 34 Rogue 34 Adventurer 0 Explorer 0 Win Type - Total 0 Types 0/0/0/0/0/0/0/0/0 Lore% 20 Gallery% 23 Achievement% 17 Wizard Run 0 Options --------- ASCII 0 Keyboard 0 Movement Mouse Keybinds 0 Fullscreen 1 Font 18/SmallcapsGlow Map View 76x50 Tactical HUD 0 Map Filters NONE Filters NONE Steam 1 RUN: 33d749c7-7342-49ff-9ba5-af4ce17e1681